Cogmind - Beta 13 @@@ ROGUE MODE // 2024.05.24 @ 11:37:19 Player: Barbarossa Result: Self-destructed Performance ------------- Evolutions (6) 3000 Regions Visited (8) 1600 Robots Destroyed (31) 155 Value Destroyed (659) 659 Prototype IDs (8) 160 Alien Tech Used (0) 0 Bonus (624) 624 TOTAL SCORE: 6198 Bonus ------- High Alert Combat Kills 19 Follower Combat Kills 120 Entered DSFs 500 Friendly Fire -15 Cogmind --------- Core Integrity 592/1150 Matter 124/450 Energy 170/170 System Corruption 4% Temperature Cool (0) Movement Core (200) Ox3 Location -4/Factory Parts ------- > --- POWER (2) -------- Light Neutrino Core > --- PROPULSION (6) --- Faulty Cooled Field Propulsion Drive > --- UTILITY (9) ------ Compact Matter Pod Transmission Jammer ECM Suite > --- WEAPON (2) ------- (None) > --- INVENTORY (5) ---- (None) Peak State ------------ > --- POWER ------------ (None) > --- PROPULSION ------- Field Propulsion Array Field Propulsion Array Field Propulsion Array > --- UTILITY ---------- Compact Matter Pod Transmission Jammer Advanced Transmission Jammer > --- WEAPON ----------- Dispersion Rifle > --- INVENTORY -------- Field Propulsion Drive Field Propulsion Drive Field Propulsion Drive Field Propulsion Drive ECM Suite [Rating: 65] Favorites ----------- Power Light Deuterium Engine Engine Light Deuterium Engine Power Core Micro Nuclear Core Propulsion Flight Unit Leg Aluminum Leg Hover Unit Gravmag System Flight Unit Flight Unit Utility Medium Storage Unit Device Improved Sensor Array Storage Medium Storage Unit Processor Corruption Screen Hackware System Shield Protection Backup Plating I Weapon Beam Rifle Energy Gun Beam Rifle Ballistic Gun Light Assault Rifle Special Weapon Remote Datajack Special Melee Weapon Datajack Build | -11 -10 -9 -8 -7 -6 -5 -5 -4 ------- Run | Yrd Mat Mat Mat Fac Fac Fac DSF Fac Slots Evolved 12 | . . 2 2 2 2 2 . 2 Power 1 | . . . . 1 . . . . Propulsion 4 | . . 2 1 1 . . . . Utility 7 | . . . 1 . 2 2 . 2 Weapon . | . . . . . . . . . Parts Attached 117 | . 10 13 15 32 20 . 12 15 Power 25 | . . 2 2 12 4 . 2 3 Engine 15 | . . 2 2 10 . . . 1 Core 10 | . . . . 2 4 . 2 2 Reactor . | . . . . . . . . . Propulsion 48 | . 7 8 5 8 4 . 8 8 Treads . | . . . . . . . . . Leg . | . . . . . . . . . Wheel . | . . . . . . . . . Hover 16 | . 7 4 . 5 . . . . Flight 32 | . . 4 5 3 4 . 8 8 Utility 21 | . . 2 3 6 5 . 2 3 Device 14 | . . 1 3 5 1 . 2 2 Storage 3 | . . 1 . 1 . . . 1 Processor 1 | . . . . . 1 . . . Hackware 3 | . . . . . 3 . . . Protection . | . . . . . . . . . Artifact . | . . . . . . . . . Weapon 23 | . 3 1 5 6 7 . . 1 Energy Gun 19 | . 1 1 5 6 5 . . 1 Energy Cannon . | . . . . . . . . . Ballistic Gun 1 | . 1 . . . . . . . Ballistic Cannon . | . . . . . . . . . Launcher . | . . . . . . . . . Special Weapon 2 | . . . . . 2 . . . Impact Weapon . | . . . . . . . . . Slashing Weapon . | . . . . . . . . . Piercing Weapon . | . . . . . . . . . Special Melee Weapon 1 | . 1 . . . . . . . Unidentified Prototypes 6 | . . . 1 2 1 . . 2 Parts Lost 44 | . 5 4 1 9 9 . 6 10 Power 3 | . . . . 1 . . 1 1 Propulsion 31 | . 3 3 1 6 7 . 4 7 Utility 4 | . . . . 1 1 . 1 1 Weapon 6 | . 2 1 . 1 1 . . 1 Highest Loss Streak 10 | . 3 2 1 5 7 . 6 10 To Critical Strikes . | . . . . . . . . . Average Slot Usage (%) 73 | . 75 86 96 76 71 5 41 30 Engine 8 | . 14 11 9 9 3 . . . Core 1 | . . . . . 5 . 4 1 Hover 10 | . 24 17 . 9 15 . . . Flight 20 | . . 19 42 24 13 . 24 11 Device 7 | . . 3 17 9 3 . 6 9 Storage 10 | . 14 11 9 12 9 . . 3 Hackware 1 | . . . . . 10 5 3 . Energy Gun 10 | . 7 18 18 9 6 . . 2 Naked Turns . | . . . . . . . . . Heaviest Build 39 | 13 13 16 27 39 36 . 17 21 Greatest Support 45 | 20 20 24 29 45 36 3 42 21 Greatest Overweight (x) 5 | . 1 3 1 2 1 . 5 3 Average Overweight (x) . | . . . . . . . . . Largest Inventory Capacity 10 | . 8 10 10 10 10 5 5 5 Average Capacity 8 | . 8 8 10 10 8 5 5 5 Most Carried 10 | . 8 10 10 10 10 5 5 5 Average Carried 8 | . 7 8 9 9 8 5 4 3 Final Capacity 10 | 8 8 10 10 10 5 5 5 5 Final Carried 10 | 6 7 9 10 10 5 5 5 . Class Distribution -------------------- 45% | Mutant 23% | Scavenger-Sprinter 19% | Scavenger-Mutant 4% | Infiltrator-Mutant 3% | Hacker-Mutant 3% | Sprinter Dominant Class ---------------- Mutant | -10/Materials Mutant | -9/Materials Scavenger-Sprinter | -8/Materials Mutant | -7/Factory Hacker-Mutant | -6/Factory Hacker-Mutant | -5/Factory Infiltrator-Mutant | -5/DSF Mutant | -4/Factory Resources | -11 -10 -9 -8 -7 -6 -5 -5 -4 ----------- Run | Yrd Mat Mat Mat Fac Fac Fac DSF Fac Matter Collected 1157 | 176 88 285 10 453 139 . 6 . Remotely . | . . . . . . . . . Salvage Created 964 | . 190 379 33 255 85 . . 22 Parts 55 | . 7 25 7 9 6 . . 1 Haulers Intercepted . | . . . . . . . . . Recyclers Shooed 4 | . 1 2 . 1 . . . . Parts Field Recycled . | . . . . . . . . . Retrieved Matter . | . . . . . . . . . Parts Self-Destructed . | . . . . . . . . . Prevented . | . . . . . . . . . Kills | -11 -10 -9 -8 -7 -6 -5 -5 -4 ------- Run | Yrd Mat Mat Mat Fac Fac Fac DSF Fac Combat Hostiles Destroyed 24 | . 5 10 3 4 1 . . 1 Guns 23 | . 5 9 3 4 1 . . 1 Classes Destroyed 6 | . 3 2 . 1 . . . . Worker 6 | . . 1 . 4 1 . . . Recycler 1 | . 1 . . . . . . . Swarmer 14 | . 3 4 3 3 . . . 1 Grunt 5 | . 2 3 . . . . . . Sentry 4 | . . 3 . . 1 . . . Programmer 1 | . . . . 1 . . . . Best Kill Streak 4 | . 3 4 3 3 1 . . 1 Combat Bots Only 4 | . 3 4 3 3 1 . . 1 Max Kills in Single Turn 1 | . 1 1 1 1 1 . . 1 Gunslinging . | . . . . . . . . . Exploded . | . . . . . . . . . Melee . | . . . . . . . . . Uniques/NPCs Destroyed . | . . . . . . . . . Combat | -11 -10 -9 -8 -7 -6 -5 -5 -4 -------- Run | Yrd Mat Mat Mat Fac Fac Fac DSF Fac Hostile Shots Fired 686 | . 61 80 31 146 157 . 44 167 Missed 317 | . 15 31 19 55 88 . 20 89 Damage Taken 4777 | . 495 500 153 1013 634 . 721 1261 Core 1696 | . 172 153 38 188 258 . 329 558 Absorbed by Shields 56 | . . . . . . . 56 . Regen/Repaired (Parts) 54 | . . 38 16 . . . . . Core Remaining (%) 70 | 100 31 61 93 73 69 . 67 . Volleys Fired 153 | . 40 41 5 44 14 . . 9 Largest 2 | . 1 2 2 2 2 . . 1 Hottest 138 | . 50 60 70 117 138 . . 88 Shots Fired 230 | . 40 78 10 67 26 . . 9 Gun 230 | . 40 78 10 67 26 . . 9 Cannon . | . . . . . . . . . Launcher . | . . . . . . . . . Special . | . . . . . . . . . Kinetic 4 | . 4 . . . . . . . Thermal 226 | . 36 78 10 67 26 . . 9 Explosive . | . . . . . . . . . Electromagnetic . | . . . . . . . . . Robot Hit Streak 13 | . 6 9 2 6 13 . . 2 Robot Miss Streak 5 | . 4 5 1 3 4 . . 2 Penetration Max . | . . . . . . . . . Secondary Targets . | . . . . . . . . . Shots Hit Robots 136 | . 26 47 5 36 18 . . 4 Core Hits 52 | . 11 20 3 11 6 . . 1 Critical Kills . | . . . . . . . . . Critical Parts Destroyed . | . . . . . . . . . Critical Strikes 7 | . 2 . . 3 2 . . . Burn 7 | . 2 . . 3 2 . . . Melee Attacks 1 | . 1 . . . . . . . Impact . | . . . . . . . . . Slashing . | . . . . . . . . . Piercing . | . . . . . . . . . Sneak Attacks 1 | . 1 . . . . . . . Combat Hostiles . | . . . . . . . . . Follow-up Attacks . | . . . . . . . . . Damage Inflicted 1859 | . 319 418 53 599 357 . . 113 Guns 1841 | . 319 418 53 586 357 . . 108 Cannons . | . . . . . . . . . Explosions . | . . . . . . . . . Melee . | . . . . . . . . . Ramming 18 | . . . . 13 . . . 5 Kinetic 18 | . 18 . . . . . . . Thermal 1823 | . 301 418 53 586 357 . . 108 Explosive . | . . . . . . . . . Electromagnetic . | . . . . . . . . . Impact . | . . . . . . . . . Slashing . | . . . . . . . . . Piercing . | . . . . . . . . . Highest Corruption 4 | . . . . 3 2 . . 4 Average Corruption 1 | . . . . 1 1 . . 3 Corruption Purged . | . . . . . . . . . Corruption Blocked . | . . . . . . . . . Effects 6 | . . . . 3 3 . . . Message Errors 1 | . . . . . 1 . . . Matter Fused 3 | . . . . 1 2 . . . Heat Flow Errors 2 | . . . . 2 . . . . Overload Shots . | . . . . . . . . . Overflow Damage . | . . . . . . . . . Projectiles . | . . . . . . . . . Explosions . | . . . . . . . . . Melee . | . . . . . . . . . Knockbacks . | . . . . . . . . . Impact . | . . . . . . . . . Kinetic . | . . . . . . . . . Secondary . | . . . . . . . . . Self-Inflicted Damage 8 | . . . . 6 . . . 2 Shots . | . . . . . . . . . Rammed 2 | . . . . 1 . . . 1 Targets Rammed 2 | . . . . 1 . . . 1 Kicked . | . . . . . . . . . Crushed . | . . . . . . . . . Highest Temperature 362 | . 183 108 . 305 362 . . 40 Average Temperature 81 | . 71 29 . 63 177 . . 15 Received Heat Transfer 933 | . 210 165 36 255 189 . 42 36 Siege Activations . | . . . . . . . . . Robots Corrupted . | . . . . . . . . . Combat Hostiles . | . . . . . . . . . Parts Fried . | . . . . . . . . . Impact Corruptions . | . . . . . . . . . Robots Melted 1 | . . 1 . . . . . . Combat Hostiles 1 | . . 1 . . . . . . Parts Melted 12 | . 4 6 . 2 . . . . Heat Transferred 5595 | . 1036 1739 137 1591 944 . . 148 Parts Sabotaged . | . . . . . . . . . Parts Stolen . | . . . . . . . . . Parts Stripped . | . . . . . . . . . Power Chain Reactions . | . . . . . . . . . Alert | -11 -10 -9 -8 -7 -6 -5 -5 -4 ------- Run | Yrd Mat Mat Mat Fac Fac Fac DSF Fac Peak Influence 520 | . 233 520 216 302 121 53 37 131 Initial 105 | . . 89 105 70 16 53 37 . Average 115 | . 93 231 164 100 65 53 27 63 Maximum Alert Level 2 | . 1 2 1 1 . . . . Low Security (%) 83 | . 70 42 96 88 100 100 100 100 Level 1 14 | . 29 47 3 11 . . . . Level 2 1 | . . 9 . . . . . . Level 3 . | . . . . . . . . . Level 4 . | . . . . . . . . . Level 5 . | . . . . . . . . . High Security . | . . . . . . . . . Max Security . | . . . . . . . . . Squads Dispatched 14 | . . 3 . 7 1 . 2 1 Investigation 3 | . . 2 . 1 . . . . Extermination 1 | . . . . 1 . . . . Reinforcement 7 | . . 1 . 2 1 . 2 1 Assault . | . . . . . . . . . Garrison 3 | . . . . 3 . . . . Intercept . | . . . . . . . . . Searches Triggered . | . . . . . . . . . Construction Impeded 1 | . . . . 1 . . . . Haulers Reinforced . | . . . . . . . . . Active Scanning Responses . | . . . . . . . . . Cargo Convoy Interrupts . | . . . . . . . . . Stealth | -11 -10 -9 -8 -7 -6 -5 -5 -4 --------- Run | Yrd Mat Mat Mat Fac Fac Fac DSF Fac Distress Signals 8 | . 2 3 . . . . . 3 Communications Jammed . | . . . . . . . . . Distress Signals . | . . . . . . . . . Times Spotted 135 | . 16 30 17 18 11 . 8 35 Peak Tracking Total 14 | . 8 11 10 5 8 . 7 14 Tactical Retreats 20 | . 3 5 2 3 2 . . 5 Traps | -11 -10 -9 -8 -7 -6 -5 -5 -4 ------- Run | Yrd Mat Mat Mat Fac Fac Fac DSF Fac Traps Triggered 6 | . 1 . . 2 1 . 2 . Indirectly . | . . . . . . . . . Trap Hack Attempts 30 | . 30 . . . . . . . Triggered . | . . . . . . . . . Disarmed 1 | . 1 . . . . . . . Reprogrammed 5 | . 5 . . . . . . . Reused . | . . . . . . . . . Traps Extracted . | . . . . . . . . . Installed . | . . . . . . . . . Triggered . | . . . . . . . . . Machines | -11 -10 -9 -8 -7 -6 -5 -5 -4 ---------- Run | Yrd Mat Mat Mat Fac Fac Fac DSF Fac Machines Disabled 2 | . . . . . 1 . . 1 Max in Single Turn 1 | . . . . . 1 . . 1 Machines Repaired . | . . . . . . . . . Machines Dismantled . | . . . . . . . . . Machines Sabotaged . | . . . . . . . . . Overloaded Fab Kills . | . . . . . . . . . Hacking | -11 -10 -9 -8 -7 -6 -5 -5 -4 --------- Run | Yrd Mat Mat Mat Fac Fac Fac DSF Fac Machines Accessed 21 | . 2 5 6 6 . 1 . 1 Terminals 12 | . 2 3 4 1 . 1 . 1 Fabricators 1 | . . . . 1 . . . . Repair Stations 2 | . . 1 1 . . . . . Recycling Units 1 | . . . . 1 . . . . Scanalyzers 4 | . . 1 1 2 . . . . Garrison Access 1 | . . . . 1 . . . . Total Hacks 76 | . 7 24 28 13 . 1 . 3 Successful 41 | . 3 13 16 6 . 1 . 2 Failed 35 | . 4 11 12 7 . . . 1 Catastrophic 2 | . . 1 . 1 . . . . Database Lockouts . | . . . . . . . . . Manual 40 | . 6 13 12 6 . . . 3 Terminals 47 | . 7 12 18 6 . 1 . 3 Fabricators 2 | . . . . 2 . . . . Repair Stations 15 | . . 9 6 . . . . . Recycling Units 1 | . . . . 1 . . . . Scanalyzers 9 | . . 3 4 2 . . . . Garrison Access 2 | . . . . 2 . . . . Terminal Hacks 10 | . 1 2 5 1 . 1 . . Prototype ID Bank 1 | . . . 1 . . . . . Open DSF 1 | . . . . . . 1 . . Alert Level 1 | . . . 1 . . . . . Unreport Threat 4 | . . 2 1 1 . . . . Locate Traps 3 | . 1 . 2 . . . . . Fabricator Hacks 2 | . . . . 2 . . . . Network Status 1 | . . . . 1 . . . . Build 1 | . . . . 1 . . . . Repair Station Hacks 10 | . . 5 5 . . . . . Scan Component 5 | . . 2 3 . . . . . Repair 4 | . . 2 2 . . . . . Refit 1 | . . 1 . . . . . . Recycling Unit Hacks . | . . . . . . . . . Scanalyzer 6 | . . 3 2 1 . . . . Insert Component 3 | . . 1 1 1 . . . . Analyze 3 | . . 2 1 . . . . . Garrison Access Hacks . | . . . . . . . . . Unauthorized Hacks 13 | . 2 3 4 2 . . . 2 Terminals 13 | . 2 3 4 2 . . . 2 Botnet 10 | . 2 3 3 1 . . . 1 Operators 3 | . . . 1 1 . . . 1 Fabricators . | . . . . . . . . . Repair Stations . | . . . . . . . . . Recycling Units . | . . . . . . . . . Scanalyzers . | . . . . . . . . . Garrison Access . | . . . . . . . . . Data Cores Recovered . | . . . . . . . . . Used . | . . . . . . . . . Hacking Detections 19 | . 2 5 6 5 . . . 1 Full Trace Events 3 | . . 3 . . . . . . Feedback Events . | . . . . . . . . . Feedback Blocked . | . . . . . . . . . Robot Schematics Acquired . | . . . . . . . . . Robots Built 3 | . . . . 3 . . . . Authchips . | . . . . . . . . . Time 49 | . . . . 49 . . . . Total Robot Build Rating 6 | . . . . 6 . . . . Part Schematics Acquired 2 | . . 1 1 . . . . . Parts Built . | . . . . . . . . . Authchips . | . . . . . . . . . Time . | . . . . . . . . . Total Part Build Rating . | . . . . . . . . . Parts Repaired 4 | . . 2 2 . . . . . Time 114 | . . 52 62 . . . . . Parts Recycled . | . . . . . . . . . Recycled Matter . | . . . . . . . . . Retrieved Matter . | . . . . . . . . . Retrieved Components . | . . . . . . . . . Parts Scanalyzed 2 | . . 1 1 . . . . . Part Schematics Acquired 2 | . . 1 1 . . . . . Parts Damaged . | . . . . . . . . . Bothacking | -11 -10 -9 -8 -7 -6 -5 -5 -4 ------------ Run | Yrd Mat Mat Mat Fac Fac Fac DSF Fac Used RIF Installer . | . . . . . . . . . Robots Hacked 1 | . 1 . . . . . . . Non-combat 1 | . 1 . . . . . . . Combat . | . . . . . . . . . Robot Hacks Applied 1 | . 1 . . . . . . . no_distress 1 | . 1 . . . . . . . Relay Couplers Released . | . . . . . . . . . Fabnet Peak Effective % . | . . . . . . . . . Robots Rewired 2 | . . . . 1 1 . . . Allies Hacked 1 | . . . . 1 . . . . Hacks Repelled . | . . . . . . . . . Allies | -11 -10 -9 -8 -7 -6 -5 -5 -4 -------- Run | Yrd Mat Mat Mat Fac Fac Fac DSF Fac Total Allies 8 | . . . . 4 4 . . . Largest Group 4 | . . . . 3 4 . . . Highest-Rated Group 122 | . . . . 54 122 . . . Highest-Rated Ally 31 | . . . . 18 31 . . . Total Orders 1 | . . . . 1 . . . . GUARD 1 | . . . . 1 . . . . Ally Attacks 15 | . . . . 15 . . . . Total Damage 423 | . . . . 423 . . . . Kills 6 | . . . . 6 . . . . Allies Corrupted . | . . . . . . . . . Allies Melted . | . . . . . . . . . Intel | -11 -10 -9 -8 -7 -6 -5 -5 -4 ------- Run | Yrd Mat Mat Mat Fac Fac Fac DSF Fac Robot Analysis Total . | . . . . . . . . . Derelict Logs Recovered . | . . . . . . . . . Drone Launches . | . . . . . . . . . Drone Recoveries . | . . . . . . . . . Exploration | -11 -10 -9 -8 -7 -6 -5 -5 -4 ------------- Run | Yrd Mat Mat Mat Fac Fac Fac DSF Fac Turns Passed 2614 | . 269 365 281 1114 248 2 81 254 Spaces Moved 3472 | 1 195 341 514 1528 332 3 111 447 Core 108 | . . . . . 35 3 19 51 Treads . | . . . . . . . . . Legs 21 | 1 20 . . . . . . . Wheels . | . . . . . . . . . Hover 1046 | . 175 100 . 628 143 . . . Flight 2297 | . . 241 514 900 154 . 92 396 Fastest Speed 24 | 120 56 31 28 24 32 50 30 39 Average Speed 49 | 120 63 41 28 58 48 50 39 43 Slowest Speed 300 | 120 130 280 114 194 116 50 300 200 Overloaded Moves . | . . . . . . . . . Propulsion Burnouts . | . . . . . . . . . Robots Hopped 32 | . . 10 5 1 1 . 3 12 Cave-ins Triggered . | . . . . . . . . . Exploration Rate (%) 35 | 2 42 41 47 34 11 . 86 20 Regions Visited 8 Branch Regions . Pre-discovered Areas . | . . . . . . . . . Known Exits Taken 1 | . . . . . . 1 . . Unknown Exits Taken 6 | 1 1 1 1 1 1 . . . Scrap Searched . | . . . . . . . . . Spaces Dug . | . . . . . . . . . Terrain Destroyed . | . . . . . . . . . Melee . | . . . . . . . . . Projectile . | . . . . . . . . . AOE . | . . . . . . . . . Terrain Rammed . | . . . . . . . . . Walls Destroyed . | . . . . . . . . . Machines Disabled . | . . . . . . . . . Actions | -11 -10 -9 -8 -7 -6 -5 -5 -4 --------- Run | Yrd Mat Mat Mat Fac Fac Fac DSF Fac Total 4112 | . 301 475 635 1682 395 2 140 482 Wait 249 | . 8 76 81 48 9 . 12 15 Move 3405 | . 194 323 503 1525 329 2 104 425 Hop 27 | . . 7 5 1 1 . 3 10 Pick Up 46 | . 9 7 11 8 3 . 4 4 Fast Attach 50 | . 4 7 6 13 6 . 8 6 Attach 40 | . 5 3 1 7 11 . 4 9 Detach 16 | . 2 1 1 4 8 . . . Swap 27 | . 1 3 8 12 3 . . . Drop 54 | . 7 7 14 14 9 . . 3 Fire 153 | . 40 41 5 44 14 . . 9 Melee 1 | . 1 . . . . . . . Ram 2 | . . . . 1 . . . 1 Kick . | . . . . . . . . . Crush . | . . . . . . . . . Escape Stasis 5 | . . . . . . . 5 . Rewire 7 | . . . . 5 2 . . . Trap 30 | . 30 . . . . . . . Miscellaneous . | . . . . . . . . . Route ------- -11/Scrapyard -10/Materials (discovered 2 exits: *Mat / [*Min]) -9/Materials (discovered 3 exits: *Mat / [*Min x2]) -8/Materials -7/Factory -6/Factory -5/Factory -5/DSF -4/Factory History --------- Turn | Location | Event 1 | -11/Scrapyard | Discovered new exit (range 0) 1 | -11/Scrapyard | Entered Materials 103 | -10/Materials | Discovered new exit (range 12) 233 | -10/Materials | Core integrity fell below 50% 268 | -10/Materials | Discovered new exit (range 6) 270 | -10/Materials | Entered another Materials area 270 | -9/Materials | Evolved 2 slots: Propulsion x2 270 | -9/Materials | Discovered new exit (range 15) 288 | -9/Materials | Lost 3 parts (2n1w) 305 | -9/Materials | Repaired Hover Unit 305 | -9/Materials | Build established: Mutant 333 | -9/Materials | Repaired Hover Unit 575 | -9/Materials | Discovered new exit (range 6) 603 | -9/Materials | Discovered new exit (range 16) 635 | -9/Materials | Entered another Materials area 635 | -8/Materials | Evolved 2 slots: Propulsion x1, Utility x1 754 | -8/Materials | Repaired Broken Flight Unit 781 | -8/Materials | Repaired Flight Unit 913 | -8/Materials | Discovered new exit (range 11) 916 | -8/Materials | Entered Factory 916 | -7/Factory | Evolved 2 slots: Power x1, Propulsion x1 1081 | -7/Factory | Build established: Scavenger-Sprinter 1121 | -7/Factory | Fabricated L-31 Rogue (x3) 1269 | -7/Factory | Lost 5 parts (4n1u) 1512 | -7/Factory | Build established: Mutant 1796 | -7/Factory | Garrison activated, responded to threat 1813 | -7/Factory | Build established: Scavenger-Mutant 2018 | -7/Factory | Discovered new exit (range 16) 2030 | -7/Factory | Entered another Factory area 2030 | -6/Factory | Evolved 2 slots: Utility x2 2098 | -6/Factory | Allied Derelicts emerged from ambush trap array 2143 | -6/Factory | Lost 4 allies 2226 | -6/Factory | Released all parts (7) 2253 | -6/Factory | Lost 7 parts (5n1u1w) 2263 | -6/Factory | Spotted B-75 Beast 2270 | -6/Factory | Discovered new exit (range 15) 2278 | -6/Factory | Entered another Factory area 2278 | -5/Factory | Evolved 2 slots: Utility x2 2280 | -5/Factory | Identified exit to DSF 2280 | -5/Factory | Entered DSF 2305 | -5/DSF | Additional patrols routed to DSF 2352 | -5/DSF | Discovered new exit (range 14) 2361 | -5/DSF | Entered Factory 2361 | -4/Factory | Evolved 2 slots: Utility x2 2378 | -4/Factory | Lost 6 parts (1p4n1u) 2578 | -4/Factory | Spotted B-86 Titan 2615 | -4/Factory | Self-destructed Last Messages --------------- 02579_ U-05 Engineer builds a Wall. 02582_ Penetrated by Slug. 02583_ Pressure Siphon disabled. 02583_ U-05 Engineer builds a Wall. 02586_ Pressure Siphon disabled. 02589_ Penetrated by Slug. 02589_ Field Propulsion Drive destroyed. 02589_ Dropped Lgt. Neutrino Core. 02605_ Field Propulsion Drive destroyed. 02607_ K-01 Serf cleans the Construction Platform. 02607_ Slammed into T-07 Excavator. 02608_ Field Propulsion Drive destroyed. 02610_ Adv. Transmission Jammer destroyed. 02613_ Acquired Prototype Flight Unit. 02613_ Identified Cld. Field Propulsion Drive. 02613_ Faulty integration triggers system corruption (+3). 02614_ Construction Platform disabled. 02614_ K-01 Serf collects debris. Map ----- +----------------------------------------------------+ | ??????????????????########## """ """ ""R"" | | ??????????????????# + """ """ "" "" | | ??????????????????# # """ """ ### | | ??????????????????# # """ #?? | | ??????????????????# # #?? | | ??????????????????# # """ """ """ """ #?? | | ??????????????????# # """ """ """ """ #?? | | ??????????????????# # """ """ """ """ #?? | | ??????????????????# # """ ??? "?" #?? | | ??????????????????# # ? ??? ? #?? | | ?????????????#########+##### """???" ????"?" #?? | | ?????????????#^ """?"?" ??????" ?? | | ?????????????# ^ """ ""? ??????? ??? | | ?????????????# !!! """ """ ???????????? | | ?????????????+ !! !! ??????????? | | ?????????????# !! ! ??????????? | | ?????????????# ! ??????????? | | ?????????##### ??????????? | | ???????? ?????????? | | ???????? ?????????? | | ???????? #????????? | | ???????? pp k #????????? | | ???????? """""" u #????????? | | ????????? """"""" ###########+???????????? | | ?????????? """"""" #??????????????????????? | | ????????????????"""""" !@#??????????????????????? | | ?????????????? w g ! #??????????????????????? | | ?????????? g #??????????????????????? | | ??????????? gg #??????????????????????? | | ??????????? t ??????????????????????? | | ????????????###+######+####??????????????????????? | | ?????????????????????????????????????????????????? | | ?????????????????????????????????????????????????? | | ?????????????????????????????????????????????????? | | ?????????????????????????????????????????????????? | | ?????????????????????????????????????????????????? | | ?????????????????????????????????????????????????? | | ?????????????????????????????????????????????????? | | ?????????????????????????????????????????????????? | | ?????????????????????????????????????????????????? | | ?????????????????????????????????????????????????? | | ?????????????????????????????????????????????????? | | ?????????????????????????????????????????????????? | | ?????????????????????????????????????????????????? | | ?????????????????????????????????????????????????? | | ?????????????????????????????????????????????????? | | ?????????????????????????????????????????????????? | | ?????????????????????????????????????????????????? | | ?????????????????????????????????????????????????? | | ?????????????????????????????????????????????????? | +----------------------------------------------------+ Best States ------------- Heat Dissipation 61 Energy Generation 33 Energy Capacity 500 Matter Stores 448 Matter Capacity 450 Sight Range 16 Robot Scan Range 15 Terrain Scan Density 10 ECM Strength 1 Jamming Range 12 Additional Mass Support 9 Base Temperature (-) 100 Corruption Block 8 Armor Coverage 80 Evasion (%) 65 Offensive Hacking 10 Defensive Hacking 20 Item Schematics ----------------- Beam Rifle | -9/Materials | Scanalyzed Prc. Beam Rifle | -8/Materials | Scanalyzed Robot Schematics ------------------ None Fabricated ------------ L-31 Rogue | x3 | -7/Factory | Preloaded Alien Tech Used ----------------- None Achievements -------------- None Challenges ------------ None Game ------ Seed LayeredModifiedLance Manual? 0 Play Time 00:52:27 Cumulative 189.3 hours Start 2024.05.23 @ 15:04:49 End 2024.05.24 @ 11:37:19 Sessions 2 Manual Loads 0 Difficulty Rogue Special Mode None Game No. 349 Rogue 349 Adventurer 0 Explorer 0 Win Type - Total 0 Types 0/0/0/0/0/0/0/0/0 Lore% 43 Gallery% 55 Achievement% 39 Wizard Run 0 Options --------- Layout 1 ASCII 0 Keyboard 0 Movement Mouse Keybinds 0 Fullscreen 1 Font 24/Smallcaps Map View 50x40 Zoom Use 0% Tactical HUD 1 Map Filters NONE Filters NONE Steam 1 RUN: b7d1bd1b-56bd-4ca1-887c-a0ba801f611b